fUST/lending_fUST_20250625
["ID","MTS","AMOUNT","RATE_DAILY","PERIOD"]
[367560269,1750857043068,-460.0,0.00017143,2]
[367560270,1750857043077,-460.0,0.00017143,2]
[367560272,1750857043086,-460.0,0.00017143,2]
[367560273,1750857043095,-460.0,0.00017143,2]
[367560274,1750857043104,-460.0,0.00017143,2]
[367560275,1750857043113,-460.0,0.00017143,2]
[367560276,1750857043123,-759.99,0.00017143,2]
[367560277,1750857043132,-460.0,0.00017143,2]
[367560278,1750857043141,-879.89,0.00017143,2]
[367560279,1750857043150,-460.0,0.00017143,2]
[367560280,1750857043159,-460.0,0.00017143,2]
[367560281,1750857043168,-460.0,0.00017143,2]
[367560283,1750857043177,-786.96,0.00017143,2]
[367560284,1750857043186,-5747.27,0.00017143,2]
[367560285,1750857043195,-460.0,0.00017143,2]
[367560286,1750857043204,-460.0,0.00017144,2]
[367560287,1750857043214,-460.0,0.00017144,2]
[367560288,1750857043223,-736.44,0.00017144,2]
[367560289,1750857043233,-460.0,0.00017144,2]
[367560290,1750857043242,-460.0,0.00017144,2]
[367560291,1750857043252,-460.0,0.00017144,2]
[367560292,1750857043262,-460.0,0.00017144,2]
[367560293,1750857043271,-460.0,0.00017144,2]
[367560294,1750857043281,-460.0,0.00017144,2]
[367560295,1750857043290,-460.0,0.00017144,2]
[367560296,1750857043299,-605.06,0.00017144,2]
[367560298,1750857043308,-644.6,0.00017144,2]
[367560300,1750857043323,-512.3,0.00017144,2]
[367560302,1750857043332,-460.0,0.00017144,2]
[367560303,1750857043342,-906.79,0.00017144,2]
[367560304,1750857043351,-714.8,0.00017144,2]
[367560305,1750857043361,-808.42,0.00017144,2]
[367560306,1750857043370,-2647.22,0.00017144,2]
[367560307,1750857043379,-460.0,0.00017144,2]
[367560308,1750857043389,-1641.6,0.00017144,2]
[367560309,1750857043399,-460.0,0.00017144,2]
[367560310,1750857043529,-460.0,0.00017144,2]
[367560311,1750857043539,-460.0,0.00017144,2]
[367560312,1750857043548,-2242.73,0.00017144,2]
[367560314,1750857043557,-460.0,0.00017144,2]
[367560315,1750857043566,-1574.48,0.00017144,2]
[367560316,1750857043575,-460.0,0.00017144,2]
[367560317,1750857043584,-1706.67,0.00017144,2]
[367560318,1750857043594,-460.0,0.00017145,2]
[367560319,1750857043602,-374.42,0.00017145,2]
[367560321,1750857043611,-460.0,0.00017145,2]
[367560323,1750857043621,-500.0,0.00017145,2]
[367560324,1750857043630,-460.0,0.00017145,2]
[367560325,1750857043640,-422.30076626,0.00017145,2]
[367560326,1750857043649,-460.0,0.00017145,2]
[367560327,1750857043658,-460.0,0.00017145,2]
[367560328,1750857043668,-3990.6,0.00017145,2]
[367560329,1750857043677,-460.0,0.00017145,2]
[367560331,1750857043687,-1401.48,0.00017145,2]
[367560333,1750857043696,-460.0,0.00017145,2]
[367560335,1750857043705,-603.13,0.00017145,2]
[367560337,1750857043714,-718.23,0.00017145,2]
[367560339,1750857043723,-460.0,0.00017146,2]
[367560341,1750857043732,-460.0,0.00017146,2]
[367560342,1750857043741,-460.0,0.00017146,2]
[367560343,1750857043751,-460.0,0.00017146,2]
[367560344,1750857043759,-460.0,0.00017146,2]
[367560345,1750857043768,-460.0,0.00017146,2]
[367560346,1750857043778,-1084.84885395,0.00017167,2]
[367560347,1750857043787,-502.89171688,0.00017174,2]
[367560348,1750857043796,-500.0,0.00017174,2]
[367560349,1750857043805,-500.0,0.00017174,2]
[367560350,1750857043814,-500.0,0.00017181,2]
[367560351,1750857043823,-500.0,0.00017181,2]
[367560352,1750857043832,-298.85966088,0.00017181,2]
[367560353,1750857043841,-500.0,0.00017181,2]
[367560354,1750857043850,-500.0,0.00017181,2]
[367560355,1750857043860,-500.0,0.00017181,2]
[367560356,1750857043868,-500.0,0.00017181,2]
[367560357,1750857043877,-256.82069486,0.00017181,2]
[367560358,1750857043886,-500.0,0.00017181,2]
[367560359,1750857043895,-500.0,0.00017181,2]
[367560360,1750857043905,-500.0,0.00017181,2]
[367560361,1750857043914,-500.0,0.00017181,2]
[367560362,1750857043923,-500.0,0.00017181,2]
[367560363,1750857043931,-500.0,0.00017181,2]
[367560364,1750857043940,-500.0,0.00017181,2]
[367560365,1750857043949,-500.0,0.00017181,2]
[367560366,1750857043958,-500.0,0.00017181,2]
[367560367,1750857043967,-500.0,0.00017181,2]
[367560368,1750857043976,-267.06231988,0.0001719,2]
[367560369,1750857043986,-500.0,0.00017206,2]
[367560370,1750857043995,-540.73312332,0.00017206,2]
[367560371,1750857044004,-500.0,0.00017209,2]
[367560372,1750857044013,-500.0,0.00017209,2]
[367560373,1750857044022,-500.0,0.00017209,2]
[367560374,1750857044031,-176.42018452,0.00017209,2]
[367560375,1750857044040,-500.0,0.00017216,2]
[367560376,1750857044049,-500.0,0.00017216,2]
[367560377,1750857044058,-500.0,0.00017225,2]
[367560378,1750857044067,-500.0,0.00017235,2]
[367560379,1750857044076,-340.0,0.00017236,2]
[367560380,1750857044085,-500.0,0.00017238,2]
[367560381,1750857044094,-507.41052168,0.00017279,2]
[367560382,1750857044103,-502.89649884,0.00017279,2]
[367560383,1750857044112,-500.0,0.00017279,2]
[367560384,1750857044121,-6608.07694537,0.000173,2]
[367560385,1750857044130,-6608.07694536,0.000173,2]
[367560386,1750857044139,-460.0,0.00017322,2]
[367560387,1750857044148,-500.74985877,0.00017371,2]
[367560388,1750857044157,-500.92557149,0.00017388,2]
[367560389,1750857044166,-524.02133491,0.00017388,2]
[367560390,1750857044174,-676.07758713,0.00017409,2]
[367560391,1750857044183,-3411.87733264,0.00017411,2]
[367560392,1750857044192,-181.82,0.00017415,2]
[367560393,1750857044202,-460.0,0.00017416,2]
[367560394,1750857044211,-1783.2,0.00017416,2]
[367560395,1750857044220,-1165.86,0.00017416,2]
[367560396,1750857044229,-1907.51,0.00017416,2]
[367560397,1750857044238,-460.0,0.00017416,2]
[367560398,1750857044247,-745.95,0.00017416,2]
[367560399,1750857044257,-460.0,0.00017416,2]
[367560400,1750857044266,-460.0,0.00017416,2]
[367560401,1750857044275,-460.0,0.00017416,2]
[367560402,1750857044284,-1453.2,0.00017416,2]
[367560403,1750857044292,-460.0,0.00017416,2]
[367560404,1750857044302,-460.0,0.00017416,2]
[367560405,1750857044311,-460.0,0.00017416,2]
[367560406,1750857044323,-650.29,0.00017416,2]
[367560407,1750857044332,-2026.79,0.00017416,2]
[367560408,1750857044341,-2101.35,0.00017416,2]
[367560409,1750857044351,-460.0,0.00017416,2]
[367560410,1750857044360,-460.0,0.00017417,2]
[367560411,1750857044369,-269.45721925,0.00017417,2]
[367560412,1750857044379,-259.17190732,0.00017417,2]
[367560413,1750857044388,-460.0,0.00017417,2]
[367560414,1750857044397,-460.0,0.00017417,2]
[367560415,1750857044407,-460.0,0.00017417,2]
[367560416,1750857044416,-460.0,0.00017417,2]
[367560417,1750857044425,-320.0,0.00017417,2]
[367560418,1750857044434,-460.0,0.00017417,2]
[367560419,1750857044443,-460.0,0.00017417,2]
[367560420,1750857044452,-460.0,0.00017417,2]
[367560421,1750857044461,-362.22108389,0.00017417,2]
[367560422,1750857044470,-460.0,0.00017417,2]
[367560423,1750857044479,-460.0,0.00017417,2]
[367560424,1750857044488,-460.0,0.00017417,2]
[367560425,1750857044497,-460.0,0.00017417,2]
[367560426,1750857044507,-460.0,0.00017417,2]
[367560427,1750857044515,-460.0,0.00017417,2]
[367560428,1750857044526,-709.99,0.00017417,2]
[367560429,1750857044535,-460.0,0.00017417,2]
[367560430,1750857044544,-460.0,0.00017417,2]
[367560431,1750857044554,-461.98,0.00017417,2]
[367560432,1750857044564,-3020.06,0.00017417,2]
[367560433,1750857044573,-811.27,0.00017417,2]
[367560434,1750857044582,-460.0,0.00017417,2]
[367560435,1750857044591,-460.0,0.00017417,2]
[367560436,1750857044600,-460.0,0.00017417,2]
[367560437,1750857044609,-606.58,0.00017417,2]
[367560438,1750857044619,-460.0,0.00017417,2]
[367560439,1750857044628,-759.99,0.00017417,2]
[367560440,1750857044637,-460.0,0.00017417,2]
[367560441,1750857044646,-879.89,0.00017417,2]
[367560442,1750857044655,-460.0,0.00017417,2]
[367560443,1750857044664,-460.0,0.00017417,2]
[367560444,1750857044674,-460.0,0.00017417,2]
[367560445,1750857044683,-786.96,0.00017417,2]
[367560446,1750857044692,-5747.27,0.00017417,2]
[367560447,1750857044701,-460.0,0.00017417,2]
[367560448,1750857044711,-460.0,0.00017418,2]
[367560449,1750857044720,-460.0,0.00017418,2]
[367560450,1750857044729,-736.44,0.00017418,2]
[367560451,1750857044739,-460.0,0.00017418,2]
[367560452,1750857044748,-460.0,0.00017418,2]
[367560453,1750857044758,-392.72,0.00017418,2]
[367560454,1750857044767,-482.86,0.00017418,2]
[367560455,1750857044777,-460.0,0.00017418,2]
[367560456,1750857044786,-460.0,0.00017418,2]
[367560457,1750857044795,-605.06,0.00017418,2]
[367560458,1750857044804,-644.6,0.00017418,2]
[367560459,1750857044814,-512.3,0.00017418,2]
[367560460,1750857044823,-460.0,0.00017418,2]
[367560461,1750857044832,-906.79,0.00017418,2]
[367560462,1750857044842,-714.8,0.00017418,2]
[367560463,1750857044851,-808.42,0.00017418,2]
[367560464,1750857044860,-2647.22,0.00017418,2]
[367560465,1750857044869,-1641.6,0.00017418,2]
[367560466,1750857044878,-460.0,0.00017418,2]
[367560467,1750857044888,-460.0,0.00017418,2]
[367560468,1750857044897,-460.0,0.00017418,2]
[367560469,1750857044905,-2242.73,0.00017418,2]
[367560470,1750857044915,-460.0,0.00017418,2]
[367560471,1750857044924,-1574.48,0.00017418,2]
[367560472,1750857044933,-460.0,0.00017418,2]
[367560473,1750857044942,-1706.67,0.00017418,2]
[367560474,1750857044951,-460.0,0.00017419,2]
[367560475,1750857044960,-460.0,0.00017419,2]
[367560476,1750857044969,-468.38877909,0.00017419,2]
[367560477,1750857044978,-460.0,0.00017419,2]
[367560478,1750857044988,-460.0,0.00017419,2]
[367560479,1750857044997,-3990.6,0.00017419,2]
[367560480,1750857045007,-460.0,0.00017419,2]
[367560481,1750857045016,-1401.48,0.00017419,2]
[367560482,1750857045025,-493.56164806,0.00017419,2]
[367560483,1750857045034,-718.23,0.00017419,2]
[367560484,1750857045043,-460.0,0.0001742,2]
[367560485,1750857045052,-460.0,0.0001742,2]
[367560486,1750857045061,-460.0,0.0001742,2]
[367560487,1750857045070,-460.0,0.0001742,2]
[367560488,1750857045079,-500.0,0.00017448,2]
[367560489,1750857045088,-167.68785625,0.00017455,2]
[367560490,1750857045097,-502.03328,0.00017455,2]
[367560491,1750857045108,-154.35643108,0.00017455,2]
[367560492,1750857045117,-500.0,0.00017455,2]
[367560493,1750857045126,-500.51598291,0.00017455,2]
[367560494,1750857045135,-326.66838517,0.00017455,2]
[367560495,1750857045145,-500.0,0.00017455,2]
[367560496,1750857045154,-500.0,0.00017455,2]
[367560497,1750857045163,-500.0,0.00017455,2]
[367560498,1750857045173,-500.0,0.00017455,2]
[367560499,1750857045182,-621.38510807,0.00017455,2]
[367560500,1750857045191,-500.0,0.00017455,2]
[367560501,1750857045200,-476.26006367,0.00017455,2]
[367560502,1750857045210,-500.0,0.00017455,2]
[367560503,1750857045219,-225.15736323,0.00017455,2]
[367560504,1750857045228,-151.0,0.000175,2]
[367560505,1750857045237,-5000.0,0.00017528,2]
[367560506,1750857045246,-500.0,0.00017528,2]
[367560507,1750857045256,-500.0,0.00017528,2]
[367560508,1750857045264,-450.85333529,0.00017528,2]
[367560509,1750857045274,-1688.0,0.00017528,2]
[367560510,1750857045283,-500.0,0.00017528,2]
[367560511,1750857045292,-500.0,0.00017528,2]
[367560512,1750857045301,-500.0,0.00017528,2]
[367560513,1750857045310,-207.4,0.00017528,2]
[367560514,1750857045322,-500.0,0.00017528,2]
[367560515,1750857045331,-500.0,0.00017528,2]
[367560516,1750857045341,-500.0,0.00017528,2]
[367560517,1750857045350,-500.0,0.00017528,2]
[367560518,1750857045361,-500.0,0.00017528,2]
[367560519,1750857045370,-500.0,0.00017528,2]
[367560520,1750857045379,-500.0,0.00017528,2]
[367560521,1750857045388,-500.0,0.00017528,2]
[367560522,1750857045397,-500.0,0.00017528,2]
[367560523,1750857045406,-500.0,0.00017528,2]
[367560524,1750857045415,-500.0,0.00017528,2]
[367560525,1750857045424,-500.0,0.00017528,2]
[367560526,1750857045433,-500.0,0.00017528,2]
[367560527,1750857045443,-3398.34804141,0.00017528,2]
[367560528,1750857045452,-25000.0,0.00017528,2]
[367560529,1750857045461,-151.0,0.00017528,2]
[367560530,1750857045470,-12558.06783089,0.00017532,2]
[367560531,1750857045480,-425.18553072,0.00017533,2]
[367560532,1750857045489,-160.0,0.00017533,2]
[367560533,1750857045499,-160.0,0.00017533,2]
[367560534,1750857045508,-524.21181985,0.00017533,2]
[367560535,1750857045517,-213.69531788,0.00017533,2]
[367560536,1750857045526,-160.0,0.00017533,2]
[367560537,1750857045536,-160.0,0.00017533,2]
[367560538,1750857045545,-230.22714675,0.00017533,2]
[367560539,1750857045554,-846.80634355,0.00017533,2]
[367560540,1750857045563,-160.0,0.00017533,2]
[367560541,1750857045572,-160.0,0.00017533,2]
[367560542,1750857045582,-160.0,0.00017533,2]
[367560543,1750857045591,-836.86812089,0.00017533,2]
[367560544,1750857045600,-160.0,0.00017534,2]
[367560545,1750857045609,-346.3273908,0.00017534,2]
[367560546,1750857045619,-1877.678872,0.00017583,2]
[367560547,1750857045628,-30000.0,0.0001766,2]
[367560548,1750857045638,-381.92,0.0001769,2]
[367560549,1750857045647,-1783.2,0.0001769,2]
[367560550,1750857045657,-1165.86,0.0001769,2]
[367560551,1750857045666,-1907.51,0.0001769,2]
[367560552,1750857045675,-460.0,0.0001769,2]
[367560553,1750857045684,-745.95,0.0001769,2]
[367560554,1750857045694,-460.0,0.0001769,2]
[367560555,1750857045703,-460.0,0.0001769,2]
[367560556,1750857045712,-460.0,0.0001769,2]
[367560557,1750857045722,-1453.2,0.0001769,2]
[367560558,1750857045732,-460.0,0.0001769,2]
[367560559,1750857045741,-460.0,0.0001769,2]
[367560560,1750857045753,-460.0,0.0001769,2]
[367560561,1750857045763,-650.29,0.0001769,2]
[367560562,1750857045772,-2026.79,0.0001769,2]
[367560563,1750857045782,-2101.35,0.0001769,2]
[367560564,1750857045791,-268.65,0.0001769,2]
[367560565,1750857045800,-460.0,0.00017691,2]
[367560566,1750857045809,-460.0,0.00017691,2]
[367560567,1750857045819,-460.0,0.00017691,2]
[367560568,1750857045829,-395.37515493,0.00017691,2]
[367560569,1750857045838,-460.0,0.00017691,2]
[367560570,1750857045847,-340.70265601,0.00017691,2]
[367560571,1750857045857,-460.0,0.00017691,2]
[367560572,1750857045866,-271.79236714,0.00017691,2]
[367560573,1750857045876,-460.0,0.00017691,2]
[367560574,1750857045886,-460.0,0.00017691,2]
[367560575,1750857045895,-460.0,0.00017691,2]
[367560576,1750857045905,-460.0,0.00017691,2]
[367560577,1750857045914,-709.99,0.00017691,2]
[367560578,1750857045923,-460.0,0.00017691,2]
[367560579,1750857045933,-460.0,0.00017691,2]
[367560580,1750857045942,-461.98,0.00017691,2]
[367560581,1750857045952,-3020.06,0.00017691,2]
[367560582,1750857045961,-811.27,0.00017691,2]
[367560583,1750857045971,-460.0,0.00017691,2]
[367560584,1750857045980,-460.0,0.00017691,2]
[367560585,1750857045989,-460.0,0.00017691,2]
[367560586,1750857045999,-759.99,0.00017691,2]
[367560587,1750857046008,-460.0,0.00017691,2]
[367560588,1750857046018,-879.89,0.00017691,2]
[367560589,1750857046028,-460.0,0.00017691,2]
[367560590,1750857046037,-460.0,0.00017691,2]
[367560592,1750857046047,-460.0,0.00017691,2]
[367560593,1750857046056,-786.96,0.00017691,2]
[367560594,1750857046066,-5747.27,0.00017691,2]
[367560595,1750857046075,-460.0,0.00017691,2]
[367560596,1750857046084,-460.0,0.00017692,2]
[367560597,1750857046094,-460.0,0.00017692,2]
[367560599,1750857046103,-736.44,0.00017692,2]
[367560600,1750857046112,-460.0,0.00017692,2]
[367560601,1750857046121,-460.0,0.00017692,2]
[367560602,1750857046131,-151.0,0.00017692,2]
[367560603,1750857046141,-460.0,0.00017692,2]
[367560604,1750857046250,-224.03688,0.00017692,2]
[367560605,1750857046274,-460.0,0.00017692,2]
[367560606,1750857046284,-605.06,0.00017692,2]
[367560607,1750857046293,-644.6,0.00017692,2]
[367560608,1750857046303,-512.3,0.00017692,2]
[367560609,1750857046314,-460.0,0.00017692,2]
[367560610,1750857046324,-906.79,0.00017692,2]
[367560611,1750857046333,-714.8,0.00017692,2]
[367560612,1750857046342,-808.42,0.00017692,2]
[367560613,1750857046352,-2647.22,0.00017692,2]
[367560614,1750857046361,-1641.6,0.00017692,2]
[367560615,1750857046370,-460.0,0.00017692,2]
[367560617,1750857046380,-460.0,0.00017692,2]
[367560618,1750857046389,-460.0,0.00017692,2]
[367560619,1750857046398,-2242.73,0.00017692,2]
[367560620,1750857046408,-460.0,0.00017692,2]
[367560621,1750857046418,-1574.48,0.00017692,2]
[367560622,1750857046427,-460.0,0.00017692,2]
[367560624,1750857046437,-1706.67,0.00017692,2]
[367560625,1750857046446,-460.0,0.00017693,2]
[367560626,1750857046455,-338.94926014,0.00017693,2]
[367560627,1750857046465,-460.0,0.00017693,2]
[367560628,1750857046474,-460.0,0.00017693,2]
[367560629,1750857046486,-3990.6,0.00017693,2]
[367560630,1750857046496,-460.0,0.00017693,2]
[367560631,1750857046506,-1401.48,0.00017693,2]
[367560632,1750857046515,-718.23,0.00017693,2]
[367560633,1750857046524,-460.0,0.00017694,2]
[367560634,1750857046533,-553.41547333,0.00017694,2]
[367560635,1750857046543,-1000.0,0.00017722,2]
[367560637,1750857046552,-1000.0,0.00017722,2]
[367560638,1750857046562,-1000.0,0.00017722,2]
[367560639,1750857046571,-6608.07694536,0.00017728,2]
[367560640,1750857046581,-502.24757637,0.00017729,2]
[367560641,1750857046590,-1000.0,0.00017729,2]
[367560642,1750857046599,-500.0,0.00017729,2]
[367560644,1750857046609,-1000.0,0.00017729,2]
[367560645,1750857046618,-1114.18597854,0.00017729,2]
[367560646,1750857046628,-1000.0,0.00017729,2]
[367560647,1750857046637,-1000.0,0.00017729,2]
[367560648,1750857046647,-500.0,0.00017729,2]
[367560649,1750857046656,-1000.0,0.00017729,2]
[367560650,1750857046665,-586.43189587,0.00017729,2]
[367560651,1750857046675,-377.46271169,0.00017729,2]
[367560652,1750857046684,-1000.0,0.00017729,2]
[367560653,1750857046694,-1000.0,0.00017754,2]
[367560654,1750857046703,-1001.32449287,0.00017757,2]
[367560655,1750857046712,-1000.0,0.00017757,2]
[367560656,1750857046722,-1000.0,0.00017757,2]
[367560657,1750857046731,-1000.0,0.00017764,2]
[367560658,1750857046740,-502.29752276,0.00017783,2]
[367560659,1750857046751,-1000.0,0.00017786,2]
[367560660,1750857046760,-151.0,0.000178,2]
[367560661,1750857046769,-3411.87733264,0.00017856,2]
[367560662,1750857046779,-151.0,0.00017893,2]
[367560663,1750857046788,-329.18407,0.00017893,2]
[367560664,1750857046798,-329.18407,0.00017893,2]
[367560665,1750857046807,-151.0,0.00017893,2]
[367560666,1750857046816,-921.341914,0.00017893,2]
[367560667,1750857046826,-921.341914,0.00017893,2]
[367560668,1750857046835,-5000.0,0.00017893,2]
[367560669,1750857046844,-895.02,0.00017958,3]
[367560670,1750857046853,-447.5,0.00017958,3]
[367560671,1750857046863,-1783.2,0.00017964,2]
[367560672,1750857046873,-1165.86,0.00017964,2]
[367560673,1750857046882,-1907.51,0.00017964,2]
[367560674,1750857046891,-460.0,0.00017964,2]
[367560675,1750857046900,-745.95,0.00017964,2]
[367560676,1750857046909,-460.0,0.00017964,2]
[367560677,1750857046918,-460.0,0.00017964,2]
[367560678,1750857046927,-460.0,0.00017964,2]
[367560679,1750857046936,-1453.2,0.00017964,2]
[367560680,1750857046946,-460.0,0.00017964,2]
[367560681,1750857046955,-460.0,0.00017964,2]
[367560682,1750857046964,-460.0,0.00017964,2]
[367560683,1750857046978,-650.29,0.00017964,2]
[367560684,1750857046987,-2026.79,0.00017964,2]
[367560685,1750857046997,-2101.35,0.00017964,2]
[367560686,1750857047007,-255.30595051,0.00017965,2]
[367560687,1750857047016,-460.0,0.00017965,2]
[367560688,1750857047026,-574.92020435,0.00017965,2]
[367560689,1750857047035,-205.18022097,0.00017965,2]
[367560690,1750857047044,-460.0,0.00017965,2]
[367560691,1750857047054,-460.0,0.00017965,2]
[367560692,1750857047063,-460.0,0.00017965,2]
[367560693,1750857047071,-709.99,0.00017965,2]
[367560694,1750857047080,-460.0,0.00017965,2]
[367560695,1750857047089,-461.98,0.00017965,2]
[367560696,1750857047098,-3020.06,0.00017965,2]
[367560697,1750857047107,-811.27,0.00017965,2]
[367560698,1750857047119,-460.0,0.00017965,2]
[367560699,1750857047128,-460.0,0.00017965,2]
[367560700,1750857047138,-759.99,0.00017965,2]
[367560701,1750857047147,-879.89,0.00017965,2]
[367560702,1750857047156,-503.44188186,0.00017965,2]
[367560703,1750857047166,-460.0,0.00017965,2]
[367560704,1750857047175,-460.0,0.00017965,2]
[367560705,1750857047184,-786.96,0.00017965,2]
[367560706,1750857047193,-5747.27,0.00017965,2]
[367560707,1750857047202,-474.1,0.00017965,2]
[367560708,1750857047211,-460.0,0.00017966,2]
[367560709,1750857047221,-460.0,0.00017966,2]
[367560710,1750857047230,-736.44,0.00017966,2]
[367560711,1750857047239,-460.0,0.00017966,2]
[367560712,1750857047248,-460.0,0.00017966,2]
[367560713,1750857047258,-244.01,0.00017966,2]
[367560714,1750857047267,-460.0,0.00017966,2]
[367560715,1750857047276,-605.06,0.00017966,2]
[367560716,1750857047286,-644.6,0.00017966,2]
[367560717,1750857047295,-512.3,0.00017966,2]
[367560718,1750857047303,-460.0,0.00017966,2]
[367560719,1750857047313,-906.79,0.00017966,2]
[367560720,1750857047323,-714.8,0.00017966,2]
[367560721,1750857047332,-808.42,0.00017966,2]
[367560722,1750857047341,-2647.22,0.00017966,2]
[367560723,1750857047351,-1641.6,0.00017966,2]
[367560724,1750857047359,-460.0,0.00017966,2]
[367560725,1750857047367,-460.0,0.00017966,2]
[367560726,1750857047376,-460.0,0.00017966,2]
[367560727,1750857047385,-2242.73,0.00017966,2]
[367560728,1750857047394,-460.0,0.00017966,2]
[367560729,1750857047404,-1574.48,0.00017966,2]
[367560730,1750857047413,-460.0,0.00017966,2]
[367560731,1750857047422,-1706.67,0.00017966,2]
[367560732,1750857047431,-460.0,0.00017967,2]
[367560733,1750857047440,-151.0,0.00017967,2]
[367560734,1750857047450,-151.0,0.00017967,2]
[367560735,1750857047459,-151.0,0.00017967,2]
[367560736,1750857047469,-161.176879,0.00017967,2]
[367560737,1750857047478,-161.176879,0.00017967,2]
[367560738,1750857047487,-460.0,0.00017967,2]
[367560739,1750857047496,-151.0,0.00017967,2]
[367560740,1750857047505,-151.0,0.00017967,2]
[367560741,1750857047515,-3990.6,0.00017967,2]
[367560742,1750857047524,-1401.48,0.00017967,2]
[367560743,1750857047534,-718.23,0.00017967,2]
[367560744,1750857047543,-351.107726,0.00017968,2]
[367560745,1750857047553,-351.107726,0.00017968,2]
[367560746,1750857047562,-151.0,0.00017968,2]
[367560747,1750857047571,-151.0,0.00017968,2]
[367560748,1750857047581,-151.812971,0.00017968,2]
[367560749,1750857047591,-460.0,0.00017968,2]
[367560750,1750857047600,-223.574673,0.00017968,2]
[367560751,1750857047610,-223.574673,0.00017968,2]
[367560752,1750857047619,-151.0,0.00017968,2]
[367560753,1750857047628,-151.0,0.00017968,2]
[367560754,1750857047638,-151.0,0.00018,2]
[367560755,1750857047648,-1000.0,0.00018,18]
[367560756,1750857047657,-500.0,0.00018003,2]
[367560757,1750857047667,-500.0,0.00018003,2]
[367560758,1750857047676,-1000.0,0.00018003,2]
[367560759,1750857047685,-500.8586686,0.00018003,2]
[367560760,1750857047695,-6608.07694536,0.00018003,2]
[367560761,1750857047704,-2655.0,0.00018028,2]
[367560762,1750857047713,-500.0,0.00018068,2]
[367560763,1750857047723,-5000.0,0.00018076,2]
[367560764,1750857047732,-420.0,0.00018131,2]
[367560765,1750857047741,-366.0085437,0.00018174,2]
[367560766,1750857047751,-366.0085437,0.00018208,2]
[367560767,1750857047760,-366.0085437,0.00018208,2]
[367560768,1750857047770,-366.0085437,0.00018208,2]
[367560769,1750857047779,-1783.2,0.00018238,2]
[367560770,1750857047788,-1165.86,0.00018238,2]
[367560771,1750857047798,-1907.51,0.00018238,2]
[367560772,1750857047807,-460.0,0.00018238,2]
[367560773,1750857047817,-745.95,0.00018238,2]
[367560774,1750857047826,-460.0,0.00018238,2]
[367560775,1750857047836,-460.0,0.00018238,2]
[367560776,1750857047845,-460.0,0.00018238,2]
[367560777,1750857047854,-1453.2,0.00018238,2]
[367560778,1750857047863,-255.94,0.00018238,2]
[367560779,1750857047873,-460.0,0.00018238,2]
[367560780,1750857047882,-460.0,0.00018238,2]
[367560781,1750857047891,-650.29,0.00018238,2]
[367560782,1750857047900,-2026.79,0.00018238,2]
[367560783,1750857047909,-2101.35,0.00018238,2]
[367560784,1750857047918,-460.0,0.00018239,2]
[367560785,1750857047927,-460.0,0.00018239,2]
[367560786,1750857047937,-583.93090182,0.00018239,2]
[367560787,1750857047947,-460.0,0.00018239,2]
[367560788,1750857047956,-460.0,0.00018239,2]